bitfinex/quotes_BTCUSD_20251031
["timestamp","ask_amount","ask_price","bid_price","bid_amount"]
[1761885950118,0.91023337,110260.0,110250.0,0.14009901]
[1761885950318,0.91023337,110260.0,110250.0,0.17285901]
[1761885951027,0.94481337,110260.0,110250.0,0.12257901]
[1761885951235,0.91023337,110260.0,110250.0,0.17285901]
[1761885952745,0.91023337,110260.0,110250.0,0.18406901]
[1761885953492,0.96891337,110260.0,110250.0,0.13378901]
[1761885953905,1.01648337,110260.0,110250.0,0.13378901]
[1761885954346,0.96891337,110260.0,110250.0,0.13378901]
[1761885955086,0.93433337,110260.0,110250.0,0.13378901]
[1761885955293,0.96891337,110260.0,110250.0,0.13378901]
[1761885956585,1.01648337,110260.0,110250.0,0.10102901]
[1761885956984,1.01648337,110260.0,110250.0,0.13378901]
[1761885957186,0.96891337,110260.0,110250.0,0.13378901]
[1761885957637,0.93433337,110260.0,110250.0,0.13378901]
[1761885957839,0.93433337,110260.0,110250.0,0.18406901]
[1761885958048,0.12697261,110260.0,110250.0,0.18406901]
[1761885958250,0.51860299,110260.0,110250.0,0.18406901]
[1761885959649,0.91023337,110260.0,110250.0,0.18406901]
[1761885960822,0.94481337,110260.0,110250.0,0.13378901]
[1761885961056,0.96891337,110260.0,110250.0,0.13378901]
[1761885961915,0.93433337,110260.0,110250.0,0.18406901]
[1761885962115,0.12697261,110260.0,110250.0,0.18406901]
[1761885962320,0.91023337,110260.0,110250.0,0.18406901]
[1761885963186,0.96891337,110260.0,110250.0,0.10102901]
[1761885963387,1.01648337,110260.0,110250.0,0.08981901]
[1761885963676,0.12698412,110250.0,110240.0,0.02427]
[1761885963883,0.5186145,110250.0,110240.0,0.19712901]
[1761885965670,0.91024488,110250.0,110240.0,0.19712901]
[1761885966107,0.5186145,110250.0,110240.0,0.19712901]
[1761885967054,0.5531945,110250.0,110240.0,0.19712901]
[1761885967258,0.5186145,110250.0,110240.0,0.19712901]
[1761885970621,0.12699564,110240.0,110230.0,0.02441]
[1761885970750,0.9689364,110240.0,110230.0,0.14698901]
[1761885971202,0.9689364,110240.0,110230.0,0.19726901]
[1761885971963,0.9689364,110240.0,110230.0,0.19741353]
[1761885972316,0.96817667,110240.0,110230.0,0.19741353]
[1761885972533,1.01574667,110240.0,110230.0,0.00014452]
[1761885972939,1.40737705,110240.0,110230.0,0.00014452]
[1761885973128,1.01574667,110240.0,110230.0,0.00014452]
[1761885973378,0.62438213,110240.0,110230.0,0.00014452]
[1761885974322,0.62577213,110240.0,110230.0,0.05045452]
[1761885974987,0.62577213,110240.0,110230.0,0.01887452]
[1761885975605,0.62577213,110240.0,110230.0,0.05045452]
[1761885977489,0.51813213,110240.0,110230.0,0.09557452]
[1761885978553,0.55039213,110240.0,110230.0,0.05045452]
[1761885979709,0.57297213,110240.0,110230.0,0.05045452]
[1761885982831,0.62126213,110240.0,110230.0,0.05045452]
[1761885983947,0.62126213,110240.0,110230.0,0.00014452]
[1761885984178,1.01315835,110240.0,110230.0,0.00014452]
[1761885985051,1.04934063,110240.0,110230.0,0.00014452]
[1761885985734,3.04934063,110240.0,110230.0,0.00014452]
[1761885985937,3.47915964,110240.0,110230.0,0.00014452]
[1761885986139,3.50643074,110240.0,110230.0,0.00014452]
[1761885988987,3.50643074,110240.0,110230.0,1e-08]
[1761885989869,0.51893796,110200.0,110190.0,0.02119007]
[1761885990089,0.56268796,110200.0,110190.0,0.02167416]
[1761885990304,0.61097796,110200.0,110190.0,0.02167416]
[1761885991007,0.64716024,110200.0,110190.0,0.02167416]
[1761885991429,0.98716024,110200.0,110190.0,0.02167416]
[1761885991642,1.37905646,110200.0,110190.0,0.02167416]
[1761885991866,0.55908174,110200.0,110190.0,0.02167416]
[1761885992086,0.95097796,110200.0,110190.0,0.02167416]
[1761885992508,0.96012832,110200.0,110190.0,0.02167416]
[1761885995617,0.5682321,110200.0,110190.0,0.02167416]
[1761885995853,0.96012832,110200.0,110190.0,0.02167416]
[1761885996834,0.95097796,110200.0,110190.0,0.02167416]
[1761885997495,1.35208101,110200.0,110190.0,0.02167416]
[1761885998318,0.96018479,110200.0,110190.0,0.02167416]
[1761885999514,0.95097796,110200.0,110190.0,0.02167416]
[1761885999976,1.34287418,110200.0,110190.0,0.02167416]
[1761886002150,1.43269319,110200.0,110190.0,0.02167416]
[1761886002403,3.37905646,110200.0,110190.0,0.02167416]
[1761886002613,0.12708787,110160.0,110150.0,0.0632]
[1761886002842,0.12708787,110160.0,110150.0,0.15316357]
[1761886002843,0.51898409,110160.0,110150.0,0.15316357]
[1761886003117,0.57382409,110160.0,110150.0,0.05072456]
[1761886003451,1.01401031,110160.0,110150.0,0.05072456]
[1761886004329,1.01401031,110160.0,110150.0,0.01822456]
[1761886004532,1.01401031,110160.0,110150.0,0.00014456]
[1761886004984,0.96572031,110160.0,110150.0,0.03055456]
[1761886005178,0.96572031,110160.0,110150.0,0.04863456]
[1761886005826,0.57382409,110160.0,110150.0,0.04863456]
[1761886006259,0.61808409,110160.0,110150.0,0.04863456]
[1761886006476,1.00998031,110160.0,110150.0,0.01822456]
[1761886007332,0.57382409,110160.0,110150.0,0.04863456]
[1761886008443,0.57382409,110160.0,110150.0,0.01822456]
[1761886008660,0.57382409,110160.0,110150.0,0.00014456]
[1761886008661,1.00998031,110160.0,110150.0,0.00014456]
[1761886011368,1.04616259,110160.0,110150.0,0.00014456]
[1761886011613,1.08015374,110160.0,110150.0,0.00014456]
[1761886011859,1.04616259,110160.0,110150.0,0.00014456]
[1761886012076,1.38616259,110160.0,110150.0,0.00014456]
[1761886012395,1.37727026,110160.0,110150.0,0.00014456]
[1761886012602,1.34998031,110160.0,110150.0,0.00014456]
[1761886013023,0.56618787,110160.0,110150.0,0.00014456]
[1761886013224,1.34998031,110160.0,110150.0,0.00014456]
[1761886016173,1.37726905,110160.0,110150.0,0.00014456]
[1761886018180,1.50327034,110160.0,110150.0,0.00014456]
[1761886018633,1.22230082,110160.0,110150.0,0.00014456]
[1761886019009,1.37977869,110160.0,110150.0,0.00014456]
[1761886020935,3.8814939,110160.0,110150.0,1e-08]
[1761886021405,2.68580526,110160.0,110150.0,1e-08]
[1761886021579,3.4695977,110160.0,110150.0,1e-08]
[1761886023410,3.37127624,110160.0,110150.0,1e-08]
[1761886026155,3.38127623,110160.0,110150.0,1e-08]
[1761886026856,3.37127624,110160.0,110150.0,1e-08]
[1761886027050,3.38127623,110160.0,110150.0,1e-08]
[1761886027252,3.37127624,110160.0,110150.0,1e-08]
[1761886029015,4.0767472,110160.0,110150.0,1e-08]
[1761886029227,4.16656621,110160.0,110150.0,1e-08]
[1761886030090,0.53368322,110140.0,110130.0,1e-08]
[1761886030299,3.32247321,110140.0,110130.0,0.00014468]
[1761886030516,3.36673321,110140.0,110130.0,0.00014468]
[1761886030926,3.39403074,110140.0,110130.0,0.00014468]
[1761886031962,3.36673321,110140.0,110130.0,0.00014468]
[1761886033426,3.12749366,110140.0,110130.0,0.00014468]
[1761886035700,3.66092682,110140.0,110130.0,1e-08]
[1761886036125,3.68310682,110140.0,110130.0,1e-08]
[1761886036339,2.62712249,110130.0,110120.0,0.0004]
[1761886036561,3.19807436,110130.0,110120.0,0.00054489]
[1761886036766,3.19807436,110130.0,110120.0,1e-08]
[1761886036945,3.22537621,110130.0,110120.0,1e-08]
[1761886038821,3.32519521,110130.0,110120.0,1e-08]
[1761886039032,3.40416208,110130.0,110120.0,1e-08]
[1761886039233,3.31434307,110130.0,110120.0,1e-08]
[1761886039416,3.28580081,110130.0,110120.0,1e-08]
[1761886042441,3.27580082,110130.0,110120.0,1e-08]
[1761886043810,3.07399331,110130.0,110120.0,1e-08]
[1761886044013,3.07511451,110130.0,110120.0,1e-08]
[1761886044217,2.5456789,110130.0,110120.0,1e-08]
[1761886044340,3.40942261,110130.0,110120.0,1e-08]
[1761886044552,3.49924162,110130.0,110120.0,1e-08]
[1761886044979,0.03222999,110150.0,110120.0,0.13452102]
[1761886045181,0.12707653,110170.0,110160.0,0.061072]
[1761886045427,0.12707633,110170.0,110160.0,0.15829442]
[1761886045629,0.12707633,110170.0,110160.0,0.18099901]
[1761886046061,0.12707633,110170.0,110160.0,0.33536745]
[1761886046271,0.12707633,110170.0,110160.0,0.20827958]
[1761886046477,0.12707633,110170.0,110160.0,0.20842447]
[1761886046677,0.57330776,110170.0,110160.0,0.20842447]
[1761886047233,0.57330776,110170.0,110160.0,0.33551234]
[1761886047446,0.57330776,110170.0,110160.0,0.20842447]
[1761886048441,0.60237776,110170.0,110160.0,0.07774546]
[1761886048641,0.60237776,110170.0,110160.0,0.05046489]
[1761886048642,0.62417776,110170.0,110160.0,0.05046489]
[1761886049074,0.66550776,110170.0,110160.0,0.02237489]
[1761886049309,0.66550776,110170.0,110160.0,0.00014489]
[1761886052718,0.66550776,110170.0,110160.0,0.02823489]
[1761886052926,0.57330776,110170.0,110160.0,0.06909489]
[1761886053125,0.60237776,110170.0,110160.0,0.06909489]
[1761886053323,0.62417776,110170.0,110160.0,0.02823489]
[1761886053697,0.62417776,110170.0,110160.0,0.00014489]
[1761886053835,0.66550776,110170.0,110160.0,0.00014489]
[1761886060709,0.66550776,110170.0,110160.0,0.02823489]
[1761886060911,0.62417776,110170.0,110160.0,0.02823489]
[1761886061112,0.62417776,110170.0,110160.0,0.00014489]
[1761886061315,0.66550776,110170.0,110160.0,0.00014489]
[1761886062099,0.62417776,110170.0,110160.0,0.02823489]
[1761886063625,0.66550776,110170.0,110160.0,0.00014489]
[1761886064027,0.62417776,110170.0,110160.0,0.02641489]
[1761886064229,0.66636776,110170.0,110160.0,0.00014489]
[1761886065605,0.62417776,110170.0,110160.0,0.02641489]
[1761886065941,0.62417776,110170.0,110160.0,0.00014489]
[1761886066291,0.62417776,110170.0,110160.0,0.02641489]
[1761886067085,0.66636776,110170.0,110160.0,0.02641489]
[1761886067865,0.66636776,110170.0,110160.0,0.00014489]
[1761886068845,0.66636776,110170.0,110160.0,0.02641489]
[1761886069085,0.62417776,110170.0,110160.0,0.02641489]
[1761886070893,0.17834075,110180.0,110160.0,0.02641489]
[1761886071118,0.60215776,110170.0,110160.0,0.02641489]
[1761886071316,0.57330776,110170.0,110160.0,0.06020489]
[1761886071553,0.57330776,110170.0,110160.0,0.08647489]
[1761886072521,0.13615075,110180.0,110160.0,0.1762939]
[1761886072779,0.12707633,110170.0,110160.0,0.23792177]
[1761886073273,0.12707633,110170.0,110160.0,0.30338177]
[1761886073796,0.12707633,110170.0,110160.0,0.1762939]
[1761886073988,0.57330776,110170.0,110160.0,0.30338177]
[1761886074999,0.13615075,110180.0,110160.0,0.30338177]
[1761886075000,0.58238218,110180.0,110160.0,0.30338177]
[1761886075205,0.58238218,110180.0,110170.0,0.06546]
[1761886075417,0.1270648,110180.0,110170.0,0.15527901]
[1761886075588,0.57329623,110180.0,110170.0,0.15527901]
[1761886076283,0.57329623,110180.0,110170.0,0.06546]
[1761886076484,0.12707633,110170.0,110160.0,0.02101489]
[1761886076734,1.04838919,110170.0,110160.0,0.00014489]
[1761886077114,1.38838919,110170.0,110160.0,0.00014489]
[1761886077322,1.45927147,110170.0,110160.0,0.00014489]
[1761886077943,1.54909048,110170.0,110160.0,0.00014489]
[1761886078193,3.54909048,110170.0,110160.0,0.00014489]
[1761886078609,0.57334237,110140.0,110130.0,0.06006]
[1761886078817,0.57334237,110140.0,110130.0,0.06020501]
[1761886079051,0.57334237,110140.0,110130.0,0.08647501]
[1761886079258,0.60219237,110140.0,110130.0,0.04728501]
[1761886079909,0.63689237,110140.0,110130.0,0.00014501]
[1761886080113,0.60219237,110140.0,110130.0,0.02641501]
[1761886080313,0.60219237,110140.0,110130.0,0.00014501]
[1761886080490,0.63689237,110140.0,110130.0,0.00014501]
[1761886081341,0.63689237,110140.0,110130.0,0.00014501]
[1761886081760,1.54912509,110140.0,110130.0,0.00014501]
[1761886081901,0.57334237,110140.0,110130.0,0.06560501]
[1761886082292,0.60219237,110140.0,110130.0,0.06560501]
[1761886082497,0.60219237,110140.0,110130.0,0.02641501]
[1761886082724,0.63689237,110140.0,110130.0,0.00014501]
[1761886084391,0.12709951,110150.0,110130.0,0.15542402]
[1761886084647,0.12709951,110150.0,110140.0,0.15527901]
[1761886085195,0.12709951,110150.0,110140.0,0.06546]
[1761886085401,0.12709951,110150.0,110130.0,0.03933501]
[1761886085402,0.12711094,110140.0,110130.0,0.03933501]
[1761886085606,0.15596094,110140.0,110130.0,0.02641501]
[1761886085970,0.57334237,110140.0,110130.0,0.06560501]
[1761886087875,0.47618459,110160.0,110130.0,0.28254651]
[1761886088092,0.47618459,110160.0,110140.0,0.14987901]
[1761886088093,0.12709967,110150.0,110140.0,0.14987901]
[1761886088303,0.12709967,110150.0,110140.0,0.27698995]
[1761886088509,0.12709967,110150.0,110140.0,0.30325995]
[1761886088909,0.12709967,110150.0,110140.0,0.17614901]
[1761886089089,0.58241602,110160.0,110140.0,0.30325995]
[1761886089328,0.1270994,110150.0,110140.0,0.23779995]
[1761886089689,0.1270994,110150.0,110140.0,0.26406995]
[1761886090031,0.1270994,110150.0,110140.0,0.30325995]
[1761886091231,0.1270994,110150.0,110140.0,0.17614901]
[1761886091389,0.1270994,110150.0,110140.0,0.30325995]
[1761886094376,0.57333083,110150.0,110140.0,0.30325995]
[1761886094886,0.57333083,110150.0,110140.0,0.17614901]
[1761886095535,0.1270994,110150.0,110140.0,0.17614901]
[1761886096571,0.12711094,110140.0,110130.0,0.02006501]
[1761886096797,0.83821339,110140.0,110130.0,0.04527501]
[1761886101536,0.83821339,110140.0,110130.0,0.00014501]
[1761886102328,0.15300094,110140.0,110130.0,0.02535501]
[1761886102530,0.81232339,110140.0,110130.0,0.06391501]
[1761886104071,0.12711094,110140.0,110130.0,0.15373402]
[1761886104377,0.12711094,110140.0,110130.0,0.28085651]
[1761886104820,0.13618459,110160.0,110140.0,0.12711094]
[1761886105022,0.1270994,110150.0,110140.0,0.27364865]
[1761886105154,0.1270994,110150.0,110140.0,0.21692995]
[1761886105361,0.1270994,110150.0,110140.0,0.24213995]
[1761886105751,0.1270994,110150.0,110140.0,0.28069995]
[1761886110098,0.82139704,110160.0,110140.0,0.15358901]
[1761886110303,0.1270994,110150.0,110140.0,0.08981901]
[1761886110733,0.1270994,110150.0,110140.0,0.15358901]
[1761886112824,0.1270994,110150.0,110140.0,0.28069995]
[1761886113020,0.1270994,110150.0,110140.0,0.15358901]
[1761886116927,0.81231185,110150.0,110140.0,0.15358901]
[1761886117052,0.1270994,110150.0,110140.0,0.28069995]
[1761886117708,0.1270994,110150.0,110140.0,0.30061995]
[1761886118316,0.82139704,110160.0,110140.0,0.30061995]
[1761886118614,0.1280994,110150.0,110140.0,0.23684995]
[1761886119108,0.1270994,110150.0,110140.0,0.30061995]
[1761886119351,0.1270994,110150.0,110140.0,0.31461995]
[1761886119542,0.1280994,110150.0,110140.0,0.31461995]
[1761886120368,0.001,110150.0,110140.0,0.31461995]
[1761886121124,0.1280994,110150.0,110140.0,0.31461995]
[1761886122242,0.1290994,110150.0,110140.0,0.31461995]
[1761886123387,0.1290994,110150.0,110140.0,0.18750901]
[1761886125243,0.81431185,110150.0,110140.0,0.18750901]
[1761886126796,0.1290994,110150.0,110140.0,0.18750901]
[1761886127787,0.81431185,110150.0,110140.0,0.18750901]
[1761886128103,0.1290994,110150.0,110140.0,0.18750901]
[1761886128286,0.81431185,110150.0,110140.0,0.18750901]
[1761886130065,0.84031185,110150.0,110140.0,0.05913]
[1761886130453,0.84031185,110150.0,110140.0,0.09649]
[1761886130655,0.84031185,110150.0,110140.0,0.05913]
[1761886133009,0.84031185,110150.0,110140.0,0.09649]
[1761886133634,0.81431185,110150.0,110140.0,0.09649]
[1761886133807,0.1290994,110150.0,110140.0,0.20446771]
[1761886134012,0.1290994,110150.0,110140.0,0.18630901]
[1761886136066,0.81431185,110150.0,110140.0,0.18630901]
[1761886137718,0.84031185,110150.0,110140.0,0.09649]
[1761886137919,0.002,110150.0,110140.0,0.31341995]
[1761886138327,0.1290994,110150.0,110140.0,0.31341995]
[1761886139164,0.1290994,110150.0,110140.0,0.18630901]
[1761886139387,0.52149995,110150.0,110140.0,0.18630901]
[1761886140278,0.52149995,110150.0,110140.0,0.31341995]
[1761886140675,0.002,110150.0,110140.0,0.31341995]
[1761886141166,0.002,110150.0,110140.0,1.0458205]
[1761886141604,0.00010257,110150.0,110140.0,1.08200278]
[1761886141815,0.00010257,110150.0,110140.0,1.16160805]
[1761886142234,0.00010257,110150.0,110140.0,1.17089158]
[1761886142411,0.13615378,110170.0,110150.0,0.46708859]
[1761886142650,0.5194656,110180.0,110160.0,0.24086688]
[1761886142785,0.12707633,110170.0,110160.0,0.25426688]
[1761886142995,0.12707633,110170.0,110160.0,0.21690688]
[1761886143191,0.12707633,110170.0,110160.0,0.24086688]
[1761886143614,0.12707633,110170.0,110160.0,0.27822688]
[1761886143819,0.68488452,110180.0,110170.0,0.12707633]
[1761886143995,0.1270648,110180.0,110170.0,0.15113901]
[1761886144196,0.1270648,110180.0,110170.0,0.27821534]
[1761886144658,0.1280648,110180.0,110170.0,0.27821534]
[1761886144814,0.1270648,110180.0,110170.0,0.27821534]
[1761886145156,0.1280648,110180.0,110170.0,0.28436035]
[1761886146379,0.1280648,110180.0,110170.0,0.29236035]
[1761886146968,0.001,110180.0,110170.0,0.29236035]
[1761886147185,0.1280648,110180.0,110170.0,0.29236035]
[1761886147356,0.001,110180.0,110170.0,0.29236035]
[1761886147571,0.1280648,110180.0,110170.0,0.29236035]
[1761886148557,0.001,110180.0,110170.0,0.29236035]
[1761886148823,0.1280648,110180.0,110170.0,0.29236035]
[1761886150129,0.001,110180.0,110170.0,0.29236035]
[1761886150294,0.1280648,110180.0,110170.0,0.29236035]
[1761886150702,0.1280648,110180.0,110170.0,0.30956035]
[1761886151059,0.76717417,110190.0,110170.0,0.30956035]
[1761886151264,0.76717417,110190.0,110180.0,0.08043]
[1761886152103,0.7762494,110190.0,110180.0,0.08043]
[1761886152466,0.7772494,110190.0,110180.0,0.08043]
[1761886152728,0.7762494,110190.0,110180.0,0.08043]
[1761886153593,0.7762494,110190.0,110180.0,0.08643]
[1761886154007,0.7772494,110190.0,110180.0,0.09143]
[1761886157454,0.53807694,110190.0,110180.0,0.09143]
[1761886157657,0.53807694,110190.0,110180.0,0.09556254]
[1761886158660,0.58512694,110190.0,110180.0,0.01513254]
[1761886158999,0.91089555,110190.0,110180.0,0.01513254]
[1761886160039,0.88704555,110190.0,110180.0,0.04023254]
[1761886160563,0.86384555,110190.0,110180.0,0.09385254]
[1761886160803,0.52384555,110190.0,110180.0,0.09385254]
[1761886165448,0.47031784,110190.0,110180.0,0.09385254]
[1761886165667,0.07813349,110190.0,110180.0,0.09385254]
[1761886165881,0.47031784,110190.0,110180.0,0.09385254]
[1761886167286,0.28553199,110190.0,110180.0,0.09385254]
[1761886167706,0.12707455,110190.0,110180.0,0.09385254]
[1761886168000,0.52833413,110190.0,110180.0,0.09385254]
[1761886168351,0.92051848,110190.0,110180.0,0.09385254]
[1761886169675,0.94371848,110190.0,110180.0,0.05876254]
[1761886170088,0.92051848,110190.0,110180.0,0.09385254]
[1761886178200,0.94371848,110190.0,110180.0,0.09385254]
[1761886178397,0.94371848,110190.0,110180.0,0.05876254]
[1761886178922,0.96756848,110190.0,110180.0,0.01513254]
[1761886179640,0.13614978,110190.0,110180.0,0.09385254]
[1761886179829,0.52833413,110190.0,110180.0,0.09385254]
[1761886180253,0.52833413,110190.0,110180.0,0.22091734]
[1761886182375,0.13614978,110190.0,110180.0,0.22091734]
[1761886182561,0.52833413,110190.0,110180.0,0.22091734]
[1761886182762,0.52833413,110190.0,110180.0,0.09385254]
[1761886183714,0.52833413,110190.0,110180.0,0.22091734]
[1761886184303,0.33523402,110190.0,110180.0,0.22091734]
[1761886184504,0.39218435,110190.0,110180.0,0.22091734]
[1761886184712,0.5192589,110190.0,110180.0,0.22091734]
[1761886184907,0.52833413,110190.0,110180.0,0.22091734]
[1761886185351,0.52833413,110190.0,110180.0,0.09385254]
[1761886185723,0.13614978,110190.0,110180.0,0.09385254]
[1761886185921,0.52833413,110190.0,110180.0,0.09385254]
[1761886186557,0.92051848,110190.0,110180.0,0.09385254]
[1761886186777,0.52833413,110190.0,110180.0,0.09385254]
[1761886187945,0.94253848,110190.0,110180.0,0.03366254]
[1761886188144,0.96455848,110190.0,110180.0,0.01513254]
[1761886188552,0.94253848,110190.0,110180.0,0.03895254]
[1761886189617,0.92051848,110190.0,110180.0,0.09145254]
[1761886189949,0.52833413,110190.0,110180.0,0.09145254]
[1761886190362,0.55035413,110190.0,110180.0,0.05708254]
[1761886190565,0.94253848,110190.0,110180.0,0.05708254]
[1761886191838,0.94253848,110190.0,110180.0,0.09145254]
[1761886192175,0.55035413,110190.0,110180.0,0.09145254]
[1761886192629,0.55035413,110190.0,110180.0,0.05708254]
[1761886193030,0.15816978,110190.0,110180.0,0.05633263]
[1761886193236,0.52833413,110190.0,110180.0,0.09070263]
[1761886194312,0.55035413,110190.0,110180.0,0.09070263]
[1761886196872,0.94253848,110190.0,110180.0,0.01438263]
[1761886197128,0.4670648,110180.0,110170.0,0.00014501]
[1761886197358,1.69639785,110180.0,110170.0,0.00014501]
[1761886197605,3.3042135,110180.0,110170.0,0.00014501]
[1761886197854,3.3042135,110180.0,110170.0,0.00036586]
[1761886198107,3.3042135,110180.0,110170.0,0.04231586]
[1761886198108,1.2821935,110180.0,110170.0,0.04231586]
[1761886198349,1.2601735,110180.0,110170.0,0.07668586]
[1761886198571,1.2601735,110180.0,110170.0,0.08368586]
[1761886199288,1.2611735,110180.0,110170.0,0.08968586]
[1761886200655,1.2831935,110180.0,110170.0,0.05531586]
[1761886201179,0.4680648,110180.0,110170.0,0.08968586]
[1761886201387,1.2524335,110180.0,110170.0,0.08968586]
[1761886201986,1.2744535,110180.0,110170.0,0.05531586]
[1761886202208,0.86024915,110180.0,110170.0,0.08968586]
[1761886202426,1.2744535,110180.0,110170.0,0.05531586]
[1761886203122,1.2524335,110180.0,110170.0,0.08968586]
[1761886203917,1.2744535,110180.0,110170.0,0.05531586]
[1761886204240,1.2744535,110180.0,110170.0,0.08968586]
[1761886204565,0.1280648,110180.0,110170.0,0.08968586]
[1761886204773,0.52024915,110180.0,110170.0,0.08968586]
[1761886205202,0.52024915,110180.0,110170.0,0.17950487]
[1761886205610,0.1280648,110180.0,110170.0,0.17950487]
[1761886205841,0.52024915,110180.0,110170.0,0.17950487]
[1761886207317,0.1280648,110180.0,110170.0,0.17950487]
[1761886207518,0.52024915,110180.0,110170.0,0.17950487]
[1761886209264,0.1280648,110180.0,110170.0,0.3065812]
[1761886209705,0.001,110180.0,110170.0,0.3065812]
[1761886210422,0.1280648,110180.0,110170.0,0.3065812]
[1761886212138,0.001,110180.0,110170.0,0.3065812]
[1761886213265,0.1280648,110180.0,110170.0,0.3065812]
[1761886216024,0.001,110180.0,110170.0,0.3065812]
[1761886216224,0.1280648,110180.0,110170.0,0.3065812]
[1761886216457,0.39318435,110180.0,110170.0,0.3065812]
[1761886216658,0.52024915,110180.0,110170.0,0.3065812]
[1761886216876,0.52024915,110180.0,110170.0,0.17950487]
[1761886217491,0.52026311,110180.0,110170.0,0.17950487]
[1761886217886,0.52026311,110180.0,110170.0,0.3065812]
[1761886218601,0.52026311,110180.0,110170.0,0.17950487]
[1761886222190,0.53930311,110180.0,110170.0,0.08968586]
[1761886223281,0.53930311,110180.0,110170.0,0.05531586]
[1761886225249,0.52026311,110180.0,110170.0,0.09040586]
[1761886226330,0.1280648,110180.0,110170.0,0.3073012]
[1761886227918,0.001,110180.0,110170.0,0.3073012]
[1761886228543,0.1280648,110180.0,110170.0,0.3073012]
[1761886230798,0.001,110180.0,110170.0,0.3073012]
[1761886231026,0.1280648,110180.0,110170.0,0.3073012]
[1761886232129,0.001,110180.0,110170.0,0.3073012]
[1761886234377,0.1280648,110180.0,110170.0,0.18022487]
[1761886234586,0.1280648,110180.0,110170.0,0.3073012]
[1761886235025,0.001,110180.0,110170.0,0.3073012]
[1761886237853,0.001,110180.0,110170.0,0.18022487]
[1761886238310,0.001,110180.0,110170.0,0.3073012]
[1761886238933,0.1280648,110180.0,110170.0,0.3073012]
[1761886239102,0.1280648,110180.0,110170.0,0.18022487]
[1761886239443,0.52026311,110180.0,110170.0,0.08340586]
[1761886239788,0.52026311,110180.0,110170.0,0.08940586]
[1761886240347,0.51926311,110180.0,110170.0,0.08340586]
[1761886240557,0.52026311,110180.0,110170.0,0.08840586]
[1761886241829,0.1280648,110180.0,110170.0,0.08840586]
[1761886242048,0.52026311,110180.0,110170.0,0.08840586]
[1761886242568,0.33926081,110180.0,110170.0,0.08840586]
[1761886243152,0.46632561,110180.0,110170.0,0.08840586]
[1761886243990,0.48273561,110180.0,110170.0,0.05331586]
[1761886244638,0.48273561,110180.0,110170.0,0.08504586]
[1761886245083,0.48273561,110180.0,110170.0,0.01136586]
[1761886246662,0.49914561,110180.0,110170.0,0.01136586]
[1761886246865,0.83914561,110180.0,110170.0,0.01136586]
[1761886247728,0.64296968,110180.0,110170.0,0.01136586]
[1761886249202,0.62655968,110180.0,110170.0,0.01136586]
[1761886250527,0.64296968,110180.0,110170.0,0.01136586]
[1761886251787,0.6572027,110180.0,110170.0,0.01136586]
[1761886251965,0.64296968,110180.0,110170.0,0.01136586]
[1761886252574,0.85926311,110180.0,110170.0,0.04943586]
[1761886252760,0.85926311,110180.0,110170.0,0.07616586]
[1761886252967,0.1270648,110180.0,110170.0,0.07816586]
[1761886253381,0.1270648,110180.0,110170.0,0.07216586]
[1761886253583,0.1270648,110180.0,110170.0,0.07416586]
[1761886253828,0.1270648,110180.0,110170.0,0.07216586]
[1761886254049,0.1270648,110180.0,110170.0,0.07616586]
[1761886254296,0.1270648,110180.0,110170.0,0.07416586]
[1761886254675,0.1270648,110180.0,110170.0,0.07816586]
[1761886254843,0.14129668,110180.0,110170.0,0.07816586]
[1761886256136,0.01423188,110180.0,110170.0,0.31321496]
[1761886256479,0.01423188,110180.0,110170.0,0.68725951]
[1761886257156,0.13693986,110200.0,110190.0,0.12705327]
[1761886257358,0.13693986,110200.0,110190.0,0.25494228]
[1761886257575,0.13693986,110200.0,110190.0,0.28667228]
[1761886258097,0.13693939,110200.0,110190.0,0.28667228]
[1761886258303,0.5291377,110200.0,110190.0,0.16561901]
[1761886259382,3.51713016,110200.0,110190.0,1e-08]
[1761886259558,2.73273354,110200.0,110190.0,1e-08]
[1761886259708,3.5149548,110200.0,110190.0,1e-08]
[1761886259953,1.08095011,110200.0,110190.0,1e-08]
[1761886260245,1.08095011,110200.0,110170.0,0.01200586]
[1761886260246,0.1270648,110180.0,110170.0,0.01200586]
[1761886260449,0.51926311,110180.0,110170.0,0.01200586]
[1761886260646,0.54085311,110180.0,110170.0,0.03433586]
[1761886261298,0.51926311,110180.0,110170.0,0.03433586]
[1761886261500,0.1270648,110180.0,110170.0,0.06906586]
[1761886262937,0.1270648,110180.0,110170.0,0.07306586]
[1761886263342,0.1270648,110180.0,110170.0,0.04133586]
[1761886263568,0.1486548,110180.0,110170.0,0.04133586]
[1761886263780,0.1270648,110180.0,110170.0,0.07306586]
[1761886264184,0.1486548,110180.0,110170.0,0.04133586]
[1761886264850,0.83431135,110190.0,110170.0,0.04133586]
[1761886265026,0.83431135,110190.0,110170.0,0.07306586]
[1761886265027,0.1270648,110180.0,110170.0,0.07306586]
[1761886265645,0.1270648,110180.0,110170.0,0.06906586]
[1761886266297,0.1270648,110180.0,110170.0,0.06606586]
[1761886266498,0.1270648,110180.0,110170.0,0.06706586]
[1761886266705,0.1270648,110180.0,110170.0,0.07106586]
[1761886266921,0.1270648,110180.0,110170.0,0.07006586]
[1761886267336,0.1270648,110180.0,110170.0,0.07306586]
[1761886272868,0.72797517,110190.0,110170.0,0.07306586]
[1761886273047,0.1270648,110180.0,110170.0,0.05073586]
[1761886273421,0.84879903,110180.0,110170.0,0.04133586]
[1761886273670,0.88180903,110180.0,110170.0,0.00736586]
[1761886273904,0.88180903,110180.0,110170.0,0.00436586]
[1761886274029,0.88180903,110180.0,110170.0,0.00536586]
[1761886274806,0.88180903,110180.0,110170.0,0.00436586]
[1761886275256,1.28744779,110180.0,110170.0,0.00436586]
[1761886275457,1.28744779,110180.0,110170.0,0.00036586]
[1761886275458,3.31473226,110180.0,110170.0,0.00036586]
[1761886275666,3.40455127,110180.0,110170.0,0.00036586]
[1761886275928,3.40455127,110180.0,110170.0,0.00336586]
[1761886276345,3.40455127,110180.0,110170.0,0.00636586]
[1761886276561,3.27854998,110180.0,110170.0,0.00336586]
[1761886276768,0.53118927,110180.0,110170.0,0.04222586]
[1761886276972,0.53118927,110180.0,110170.0,0.04322586]
[1761886277142,1.2506435,110180.0,110170.0,0.00436586]
[1761886277290,1.0115614,110180.0,110170.0,0.00436586]
[1761886277706,0.56574927,110180.0,110170.0,0.00436586]
[1761886277917,1.0115614,110180.0,110170.0,0.00436586]
[1761886278765,0.04253447,110180.0,110170.0,0.11702487]
[1761886279018,0.13693981,110200.0,110180.0,0.12706459]
[1761886279231,0.13693981,110200.0,110180.0,0.1270648]
[1761886279232,0.12705327,110190.0,110180.0,0.1270648]
[1761886279447,0.58275194,110200.0,110190.0,0.03886]
[1761886279660,0.14832327,110190.0,110180.0,0.07064]
[1761886279861,0.5941354,110190.0,110180.0,0.07064]
[1761886280182,0.6108854,110190.0,110180.0,0.03886]
[1761886281009,0.57211549,110190.0,110180.0,0.1977048]
[1761886281234,0.001,110190.0,110180.0,0.28752381]
[1761886281408,0.001,110190.0,110180.0,0.28852381]